Cogmind - Beta 15 @@@ ROGUE MODE // 2025.05.23 @ 13:22:58 Player: Vect Result: Destroyed by QP-NKS(R) with Subdweller Laser Performance ------------- Evolutions (0) 0 Regions Visited (2) 400 Robots Destroyed (18) 90 Value Destroyed (475) 475 Prototype IDs (3) 60 Alien Tech Used (0) 0 Bonus (0) 0 TOTAL SCORE: 1025 Bonus ------- None Cogmind --------- Core Integrity 0/250 Matter 300/300 Energy 137/200 System Corruption 0% Temperature Hot (294) Movement Rolling (110) Location -10/Subcaves Parts ------- > --- POWER (1) -------- Subdweller Power Source > --- PROPULSION (2) --- Subdweller Monowheel Subdweller Monowheel > --- UTILITY (2) ------ (None) > --- WEAPON (2) ------- Particle Gun Subdweller Beam Cannon > --- INVENTORY (5) ---- Light Treads Light Treads Improved Heat Sink Medium Storage Unit Welding Torch Peak State ------------ > --- POWER ------------ Subdweller Power Source > --- PROPULSION ------- Subdweller Monowheel Subdweller Monowheel > --- UTILITY ---------- Scrap Shield > --- WEAPON ----------- Particle Gun Subdweller Beam Cannon > --- INVENTORY -------- Light Treads Light Treads Improved Heat Sink Medium Storage Unit Welding Torch [Rating: 14] Favorites ----------- Power Ion Engine Engine Ion Engine Propulsion Wheel Leg Aluminum Leg Wheel Wheel Utility Propulsion Shielding Device Terrain Scanner Storage Medium Storage Unit Processor Signal Interpreter Protection Propulsion Shielding Weapon Assault Rifle Energy Gun EM Pulse Gun Energy Cannon Subdweller Beam Cannon Ballistic Gun Assault Rifle Special Weapon Welding Torch Build | -11 -10 -10 ------- Run | Yrd Mat Sub Slots Evolved . | . . . Power . | . . . Propulsion . | . . . Utility . | . . . Weapon . | . . . Parts Attached 25 | 6 11 8 Power 4 | 1 2 1 Engine 4 | 1 2 1 Core . | . . . Reactor . | . . . Propulsion 7 | 2 2 3 Treads . | . . . Leg 2 | 2 . . Wheel 5 | . 2 3 Hover . | . . . Flight . | . . . Utility 6 | 1 4 1 Device 1 | . 1 . Storage 2 | 1 1 . Processor 1 | . 1 . Hackware . | . . . Protection 2 | . 1 1 Artifact . | . . . Weapon 8 | 2 3 3 Energy Gun 3 | . 2 1 Energy Cannon 1 | . . 1 Ballistic Gun 3 | 2 1 . Ballistic Cannon . | . . . Launcher . | . . . Special Weapon 1 | . . 1 Impact Weapon . | . . . Slashing Weapon . | . . . Piercing Weapon . | . . . Special Melee Weapon . | . . . Unidentified Prototypes . | . . . Parts Lost 4 | . 1 3 Power . | . . . Propulsion . | . . . Utility 1 | . . 1 Weapon 3 | . 1 2 Highest Loss Streak 2 | . 1 2 To Critical Strikes . | . . . Average Backups 8 | 2 8 7 Power . | . . . Propulsion 3 | 2 3 2 Utility 2 | . 2 3 Weapon 1 | . 1 . Tool/Special . | . . . Unused Backups 10 | . 3 7 Power 1 | . 1 . Propulsion 3 | . . 3 Utility 5 | . 2 3 Weapon 1 | . . 1 Tool/Special . | . . . Average Slot Usage (%) 97 | . 97 93 Engine 14 | . 14 14 Leg 8 | . 10 . Wheel 19 | . 17 28 Device 2 | . 2 . Storage 13 | . 14 10 Processor 2 | . . 10 Protection 7 | . 8 2 Energy Gun 9 | . 8 14 Ballistic Gun 18 | . 19 9 Peak Build Rating 14 | 6 8 14 Average Rating 7 | 4 7 10 On Entrance 4 | . 6 8 Naked Turns . | . . . Heaviest Build 34 | 12 20 34 Greatest Support 40 | 20 20 40 Greatest Overweight (x) 1 | 1 . . Average Overweight (x) . | . . . Largest Inventory Capacity 10 | 8 10 10 Average Capacity 8 | 6 8 8 Most Carried 10 | 6 10 10 Average Carried 8 | 3 8 8 Final Capacity 10 | 8 10 5 Final Carried 10 | 6 10 5 Class Distribution -------------------- 94% | Mutant 5% | Subdweller-Mutant Dominant Class ---------------- Mutant | -10/Materials Mutant | -10/Subcaves Resources | -11 -10 -10 ----------- Run | Yrd Mat Sub Matter Collected 732 | 234 388 110 Remotely . | . . . Salvage Created 641 | . 433 208 Parts 38 | . 28 10 Haulers Intercepted 1 | . 1 . Recyclers Shooed 1 | . 1 . Parts Field Recycled . | . . . Retrieved Matter . | . . . Parts Self-Destructed . | . . . Prevented . | . . . Kills | -11 -10 -10 ------- Run | Yrd Mat Sub Combat Hostiles Destroyed 16 | . 12 4 Guns 15 | . 11 4 AOE 1 | . 1 . Classes Destroyed 5 | . 4 1 Hauler 1 | . 1 . Watcher 1 | . 1 . Swarmer 6 | . 6 . Grunt 6 | . 6 . Subdweller 4 | . . 4 Best Kill Streak 3 | . 3 2 Combat Bots Only 3 | . 3 2 Max Kills in Single Turn 1 | . 1 1 Gunslinging . | . . . Exploded 1 | . 1 . Melee . | . . . Uniques/NPCs Destroyed . | . . . Combat | -11 -10 -10 -------- Run | Yrd Mat Sub Hostile Shots Fired 134 | . 86 48 Missed 46 | . 33 13 Hits 88 | . 53 35 Projectile 88 | . 53 35 Critical Strikes 2 | . 1 1 Damage Taken 1283 | . 510 773 Core 259 | . 94 165 Absorbed by Shields . | . . . Redirected to Shielding 9 | . 9 . Core Remaining (%) 100 | 100 . . Volleys Fired 79 | . 58 21 Largest 2 | . 2 2 Hottest 145 | . 60 145 Shots Fired 157 | . 116 41 Gun 147 | . 116 31 Cannon 10 | . . 10 Launcher . | . . . Special . | . . . Kinetic 99 | . 89 10 Thermal 21 | . . 21 Explosive . | . . . Electromagnetic 37 | . 27 10 Robot Hit Streak 11 | . 8 11 Robot Miss Streak 4 | . 4 2 Penetration Max . | . . . Secondary Targets 2 | . 1 1 Max Gunslinging Chain 1 | . 1 1 Shots Hit Robots 97 | . 66 31 Core Hits 33 | . 22 11 Critical Kills . | . . . Critical Parts Destroyed . | . . . Critical Strikes 2 | . 1 1 Burn 1 | . . 1 Corrupt 1 | . 1 . Melee Attacks . | . . . Impact . | . . . Slashing . | . . . Piercing . | . . . Sneak Attacks . | . . . Combat Hostiles . | . . . Follow-up Attacks . | . . . Damage Inflicted 1581 | . 1042 539 Guns 1248 | . 937 311 Cannons 228 | . . 228 Explosions 105 | . 105 . Melee . | . . . Ramming . | . . . Kinetic 738 | . 653 85 Thermal 477 | . 105 372 Explosive . | . . . Electromagnetic 366 | . 284 82 Impact . | . . . Slashing . | . . . Piercing . | . . . Highest Corruption . | . . . Average Corruption . | . . . Corruption Purged . | . . . Corruption Blocked . | . . . Overload Shots . | . . . Overflow Damage . | . . . Projectiles . | . . . Explosions . | . . . Melee . | . . . Knockbacks . | . . . Impact . | . . . Kinetic . | . . . Secondary . | . . . Self-Inflicted Damage . | . . . Shots . | . . . Rammed . | . . . Targets Rammed . | . . . Kicked . | . . . Crushed . | . . . Highest Temperature 288 | . 30 288 Average Temperature 56 | . 16 138 Received Heat Transfer 336 | . 141 195 Effects 1 | . . 1 Energy Bleed 1 | . . 1 Siege Activations . | . . . Martial Activations . | . . . Shielding Activations . | . . . Robots Disrupted . | . . . Combat Hostiles . | . . . Robots Corrupted . | . . . Combat Hostiles . | . . . Parts Fried 1 | . 1 . Impact Corruptions . | . . . Robots Melted . | . . . Combat Hostiles . | . . . Parts Melted . | . . . Heat Transferred 853 | . 150 703 Parts Sabotaged . | . . . Parts Stolen . | . . . Parts Stripped . | . . . Power Chain Reactions 2 | . 2 . Alert | -11 -10 -10 ------- Run | Yrd Mat Sub Maximum Alert Level . | . . . Low Security (%) 100 | 100 100 . Level 1 . | . . . Level 2 . | . . . Level 3 . | . . . Level 4 . | . . . Level 5 . | . . . High Security . | . . . Max Security . | . . . Peak Influence 115 | . 115 . Initial . | . . . Average 41 | . 43 . Influence Increases 382 | . 382 . Destroy 0b10 Robot/C 240 | . 240 . Destroy 0b10 Robot/NC 10 | . 10 . Destroy Leader 54 | . 54 . Successful Hack 42 | . 42 . Disable Machine 30 | . 30 . Destroy Structure 6 | . 6 . Influence Decreases 382 | . 368 14 Entered New Map 7 | . . 7 Time Decay 375 | . 368 7 Squads Dispatched 3 | . 3 . Investigation 2 | . 2 . Extermination . | . . . Reinforcement 1 | . 1 . Assault . | . . . Garrison . | . . . Intercept . | . . . Searches Triggered . | . . . Construction Impeded . | . . . Haulers Reinforced . | . . . Active Scanning Responses . | . . . Cargo Convoy Interrupts . | . . . Stealth | -11 -10 -10 --------- Run | Yrd Mat Sub Distress Signals . | . . . Communications Jammed . | . . . Distress Signals . | . . . Times Spotted 27 | . 15 12 Peak Tracking Total 6 | . 3 6 Tactical Retreats . | . . . Traps | -11 -10 -10 ------- Run | Yrd Mat Sub Traps Triggered 3 | . 3 . Indirectly . | . . . Trap Hack Attempts . | . . . Triggered . | . . . Disarmed . | . . . Reprogrammed . | . . . Reused . | . . . Traps Extracted . | . . . Installed . | . . . Triggered . | . . . Machines | -11 -10 -10 ---------- Run | Yrd Mat Sub Machines Disabled 2 | . 2 . Max in Single Turn 1 | . 1 . Machines Repaired . | . . . Machines Dismantled . | . . . Machines Sabotaged . | . . . Overloaded Fab Kills . | . . . Hacking | -11 -10 -10 --------- Run | Yrd Mat Sub Machines Accessed 6 | . 6 . Terminals 6 | . 6 . Fabricators . | . . . Repair Stations . | . . . Recycling Units . | . . . Scanalyzers . | . . . Garrison Access . | . . . Total Hacks 17 | . 17 . Successful 12 | . 12 . Failed 5 | . 5 . Catastrophic . | . . . Database Lockouts . | . . . Manual 6 | . 6 . Terminals 17 | . 17 . Fabricators . | . . . Repair Stations . | . . . Recycling Units . | . . . Scanalyzers . | . . . Garrison Access . | . . . Terminal Hacks 8 | . 8 . Record 2 | . 2 . Robot Analysis 1 | . 1 . Prototype ID Bank 2 | . 2 . Terminal Index 1 | . 1 . Dispatch Records 1 | . 1 . Investigation Status 1 | . 1 . Fabricator Hacks . | . . . Repair Station Hacks . | . . . Recycling Unit Hacks . | . . . Scanalyzer . | . . . Garrison Access Hacks . | . . . Unauthorized Hacks 4 | . 4 . Terminals 4 | . 4 . Botnet 4 | . 4 . Fabricators . | . . . Repair Stations . | . . . Recycling Units . | . . . Scanalyzers . | . . . Garrison Access . | . . . Data Cores Recovered . | . . . Used . | . . . Hacking Detections 6 | . 6 . Full Trace Events . | . . . Feedback Events . | . . . Feedback Blocked . | . . . Robot Schematics Acquired . | . . . Robots Built . | . . . Authchips . | . . . Time . | . . . Total Robot Build Rating . | . . . Part Schematics Acquired . | . . . Parts Built . | . . . Authchips . | . . . Time . | . . . Total Part Build Rating . | . . . Parts Repaired . | . . . Time . | . . . Parts Recycled . | . . . Recycled Matter . | . . . Retrieved Matter . | . . . Retrieved Components . | . . . Parts Scanalyzed . | . . . Part Schematics Acquired . | . . . Parts Damaged . | . . . Bothacking | -11 -10 -10 ------------ Run | Yrd Mat Sub Used RIF Installer . | . . . Robots Hacked . | . . . Non-combat . | . . . Combat . | . . . Robot Hacks Applied . | . . . Relay Couplers Released . | . . . Fabnet Peak Effective % . | . . . Robots Rewired . | . . . Allies Hacked . | . . . Hacks Repelled . | . . . Allies | -11 -10 -10 -------- Run | Yrd Mat Sub Total Allies . | . . . Largest Group . | . . . Highest-Rated Group . | . . . Highest-Rated Ally . | . . . Total Orders . | . . . Ally Attacks . | . . . Total Damage . | . . . Kills . | . . . Allies Corrupted . | . . . Allies Melted . | . . . Intel | -11 -10 -10 ------- Run | Yrd Mat Sub Active Infowar (turns) 188 | . 188 . Terrain 188 | . 188 . Robot Analysis Total 1 | . 1 . Derelict Logs Recovered . | . . . Drone Launches . | . . . Drone Recoveries . | . . . Exploration | -11 -10 -10 ------------- Run | Yrd Mat Sub Turns Passed 1214 | 64 969 181 Spaces Moved 996 | 43 846 107 Core 8 | 8 . . Treads . | . . . Legs 243 | 35 208 . Wheels 745 | . 638 107 Hover . | . . . Flight . | . . . Fastest Speed 50 | 50 80 80 Average Speed 91 | 108 89 97 Slowest Speed 120 | 120 120 110 Overloaded Moves . | . . . Propulsion Burnouts . | . . . Robots Hopped . | . . . Potential Cave-ins . | . . . Cave-ins Triggered . | . . . Exploration Rate (%) 38 | 4 98 13 Regions Visited 2 Branch Regions 1 Pre-discovered Areas . | . . . Known Exits Taken 1 | . 1 . Unknown Exits Taken 1 | 1 . . Scrap Searched . | . . . Spaces Dug . | . . . Terrain Destroyed 7 | . 6 1 Melee . | . . . Projectile 1 | . . 1 AOE 6 | . 6 . Terrain Rammed . | . . . Walls Destroyed . | . . . Machines Disabled . | . . . Actions | -11 -10 -10 --------- Run | Yrd Mat Sub Total 1149 | 57 941 151 Wait 8 | 3 4 1 Move 994 | 42 845 107 Hop . | . . . Pick Up 20 | 6 12 2 Fast Attach 8 | 6 1 1 Attach 5 | . 2 3 Detach 1 | . . 1 Swap 12 | . 8 4 Drop 22 | . 11 11 Fire 79 | . 58 21 Melee . | . . . Ram . | . . . Kick . | . . . Crush . | . . . Escape Stasis . | . . . Rewire . | . . . Trap . | . . . Miscellaneous . | . . . Route ------- -11/Scrapyard -10/Materials (discovered 6 exits: *Mat x3 / [*Min x2] / *Sub) -10/Subcaves (discovered 1 exit: [*Mat]) History --------- Turn | Location | Event 8 | -11/Scrapyard | Discovered new exit (range 15) 65 | -11/Scrapyard | Entered Materials 176 | -10/Materials | Discovered new exit (range 14) 268 | -10/Materials | Discovered new exit (range 11) 313 | -10/Materials | Build established: Mutant 436 | -10/Materials | Discovered new exit (range 15) 553 | -10/Materials | Discovered new exit (range 16) 855 | -10/Materials | Discovered new exit (range 14) 931 | -10/Materials | Discovered new exit (range 15) 982 | -10/Materials | Identified exit to Materials 1033 | -10/Materials | Identified exit to Subcaves 1034 | -10/Materials | Entered Subcaves 1035 | -10/Subcaves | Approached by a straggling Scientist 1145 | -10/Subcaves | Core integrity fell below 50% 1154 | -10/Subcaves | Ambushed by swarm of Subdwellers 1157 | -10/Subcaves | Ambushed by Subdwellers from Twisted Machinery 1164 | -10/Subcaves | Discovered new exit (range 14) 1165 | -10/Subcaves | Core integrity fell below 20% 1211 | -10/Subcaves | Lost 4 allies 1215 | -10/Subcaves | Destroyed by QP-NKS(R) with Subdweller Laser Last Messages --------------- here" 01191_ O1-CB7(R) affixes Scrap Shield Fragment to Scrap Shield. 01195_ S3-7S2(R) affixes Scrap Shield Fragment to Scrap Shield. 01196_ QP-NKS(R) affixes Scrap Shield Fragment to Scrap Shield. 01197_ S3-7S2(R) destroyed. 01198_ Subatomizers dissect the Sub. Machine Gun. 01200_ O1-CB7(R) affixes Scrap Shield Fragment to Scrap Shield. 01200_ QP-NKS(R) affixes Scrap Shield Fragment to Scrap Shield. 01203_ YO-YVB(R) destroyed. 01208_ Subatomizers dissect the Sub. Machine Gun. 01209_ 7I-7HW(u) builds Twisted Machinery. 01212_ Scrap Shield destroyed. 01214_ Overheating: Energy bleed (-48). Map ----- +----------------------------------------------------+ | ?????????????????????????????????????????????????? | | ?????????????????????????????????????????????????? | | ?????????????????????????????????????????????????? | | ?????????????????????????????????????????????????? | | ?????????????????????????????????????????????????? | | ?????????????????????????????????????????????????? | | ?????????????????????????????????????????????????? | | ?????????????????????????????????????????????????? | | ?????????????????????????????????????????????????? | | ????????????????#????????????????????????????????? | | ???????????????# ???????????????????????????????? | | ??????????????? ????????????###????????????????? | | ???????????????? ??????????? #????????????????? | | ???????????????? ??????????